[Event "Live Chess"]
[Site "Chess.com"]
[Date "2024.06.02"]
[Round "-"]
[White "MaksymYurii"]
[Black "RuslanChessN"]
[Result "0-1"]
[WhiteElo "999"]
[BlackElo "1920"]
[TimeControl "300"]
[EndTime "5:14:37 PDT"]
[Termination "RuslanChessN won by checkmate"]

1. e4 {[%clk 0:04:58]} 1... c6 {[%clk 0:04:57.9]} 2. Nf3 {[%clk 0:04:56.5]} 2...
d5 {[%clk 0:04:56.7]} 3. exd5 {[%clk 0:04:53.8]} 3... cxd5 {[%clk 0:04:56.6]} 4.
Be2 {[%clk 0:04:51.4]} 4... Nc6 {[%clk 0:04:54.2]} 5. O-O {[%clk 0:04:49.8]}
5... e5 {[%clk 0:04:53]} 6. d3 {[%clk 0:04:47.1]} 6... Nf6 {[%clk 0:04:48.5]} 7.
Be3 {[%clk 0:04:45.9]} 7... Bd6 {[%clk 0:04:45.3]} 8. Bg5 {[%clk 0:04:44.2]}
8... h6 {[%clk 0:04:42.3]} 9. Bxf6 {[%clk 0:04:38.5]} 9... Qxf6 {[%clk
0:04:40.5]} 10. Nc3 {[%clk 0:04:33.8]} 10... Be6 {[%clk 0:04:39.9]} 11. Re1
{[%clk 0:04:25.6]} 11... O-O {[%clk 0:04:37.4]} 12. Nb5 {[%clk 0:04:19.3]} 12...
Bb8 {[%clk 0:04:33.9]} 13. d4 {[%clk 0:03:51.5]} 13... e4 {[%clk 0:04:28.7]} 14.
Nd2 {[%clk 0:03:42.1]} 14... a6 {[%clk 0:04:25.9]} 15. Nc3 {[%clk 0:03:38.7]}
15... Nxd4 {[%clk 0:04:20.6]} 16. f3 {[%clk 0:03:29]} 16... Qe5 {[%clk
0:03:58.1]} 17. fxe4 {[%clk 0:03:25.7]} 17... Qxh2+ {[%clk 0:03:55.8]} 18. Kf1
{[%clk 0:03:24.9]} 18... Bg3 {[%clk 0:03:50.3]} 19. Nf3 {[%clk 0:03:15.2]} 19...
Qh1+ {[%clk 0:03:47.8]} 20. Ng1 {[%clk 0:03:13.2]} 20... Bxe1 {[%clk 0:02:54.3]}
21. Qxe1 {[%clk 0:03:10]} 21... Nxc2 {[%clk 0:02:52.5]} 22. Qd2 {[%clk
0:03:01.7]} 22... Nxa1 {[%clk 0:02:48.8]} 23. exd5 {[%clk 0:03:00.4]} 23... Rad8
{[%clk 0:02:39.7]} 24. Qd1 {[%clk 0:02:57.2]} 24... Nc2 {[%clk 0:02:25.1]} 25.
Qxc2 {[%clk 0:02:53.8]} 25... Bxd5 {[%clk 0:02:24.6]} 26. Nxd5 {[%clk 0:02:53]}
26... Rxd5 {[%clk 0:02:22.8]} 27. Qe4 {[%clk 0:02:41.9]} 27... Rfd8 {[%clk
0:02:17.6]} 28. Kf2 {[%clk 0:02:30]} 28... Qh2 {[%clk 0:01:50.4]} 29. Bc4 {[%clk
0:02:22.4]} 29... Rd2+ {[%clk 0:01:44.5]} 30. Ne2 {[%clk 0:02:20.5]} 30... g5
{[%clk 0:01:21.5]} 31. Qxb7 {[%clk 0:02:05.5]} 31... Qf4+ {[%clk 0:01:09.3]} 32.
Kg1 {[%clk 0:01:53.5]} 32... Rd1# {[%clk 0:01:07.2]} 0-1

[Event "Live Chess"]
[Site "Chess.com"]
[Date "2024.06.02"]
[Round "-"]
[White "Duke_of_Bebington"]
[Black "Tatarinov_Maxim"]
[Result "0-1"]
[WhiteElo "1627"]
[BlackElo "2286"]
[TimeControl "300"]
[EndTime "5:15:23 PDT"]
[Termination "Tatarinov_Maxim won by checkmate"]

1. e4 {[%clk 0:04:58.1]} 1... c5 {[%clk 0:04:58.4]} 2. Nf3 {[%clk 0:04:56.6]}
2... Nc6 {[%clk 0:04:57.2]} 3. c3 {[%clk 0:04:56]} 3... d6 {[%clk 0:04:55.8]} 4.
d4 {[%clk 0:04:55.2]} 4... Nf6 {[%clk 0:04:54.5]} 5. d5 {[%clk 0:04:38.3]} 5...
Nb8 {[%clk 0:04:52.3]} 6. Bd3 {[%clk 0:04:35.1]} 6... g6 {[%clk 0:04:51.4]} 7.
O-O {[%clk 0:04:32.5]} 7... Bg7 {[%clk 0:04:50.7]} 8. Be3 {[%clk 0:04:23.2]}
8... O-O {[%clk 0:04:49.9]} 9. Nbd2 {[%clk 0:04:18.4]} 9... Na6 {[%clk
0:04:43.5]} 10. a3 {[%clk 0:04:16.9]} 10... Nc7 {[%clk 0:04:42.2]} 11. h3 {[%clk
0:04:03.9]} 11... Rb8 {[%clk 0:04:37.6]} 12. Nc4 {[%clk 0:03:52.7]} 12... Bd7
{[%clk 0:04:32.1]} 13. b4 {[%clk 0:03:49.5]} 13... b5 {[%clk 0:04:30.3]} 14. Na5
{[%clk 0:03:45.8]} 14... c4 {[%clk 0:04:27.9]} 15. Bc2 {[%clk 0:03:41]} 15... e5
{[%clk 0:04:19.9]} 16. Qd2 {[%clk 0:03:32.8]} 16... a6 {[%clk 0:04:12.7]} 17.
Bh6 {[%clk 0:03:28.3]} 17... Nh5 {[%clk 0:04:09.8]} 18. Bxg7 {[%clk 0:03:25.5]}
18... Kxg7 {[%clk 0:04:09.7]} 19. Rfe1 {[%clk 0:03:11.4]} 19... Qf6 {[%clk
0:04:08]} 20. Nh2 {[%clk 0:03:07.8]} 20... Nf4 {[%clk 0:04:03.8]} 21. Re3 {[%clk
0:02:58.3]} 21... Qg5 {[%clk 0:03:59.2]} 22. Rd1 {[%clk 0:02:49.1]} 22... Qxg2#
{[%clk 0:03:56.2]} 0-1

[Event "Live Chess"]
[Site "Chess.com"]
[Date "2024.06.02"]
[Round "-"]
[White "Mikhail_Golubev"]
[Black "ACM42"]
[Result "0-1"]
[WhiteElo "2496"]
[BlackElo "2215"]
[TimeControl "300"]
[EndTime "5:15:31 PDT"]
[Termination "ACM42 won on time"]

1. e4 {[%clk 0:04:57.2]} 1... e6 {[%clk 0:04:56.4]} 2. d4 {[%clk 0:04:53.3]}
2... d5 {[%clk 0:04:51]} 3. e5 {[%clk 0:04:52.3]} 3... c5 {[%clk 0:04:49.7]} 4.
c3 {[%clk 0:04:48.9]} 4... Nc6 {[%clk 0:04:48.8]} 5. Nf3 {[%clk 0:04:46.7]} 5...
Qb6 {[%clk 0:04:47.9]} 6. Bd3 {[%clk 0:04:44.1]} 6... Bd7 {[%clk 0:04:46.4]} 7.
O-O {[%clk 0:04:41.7]} 7... cxd4 {[%clk 0:04:45.7]} 8. Nbd2 {[%clk 0:04:40.8]}
8... Nge7 {[%clk 0:04:37.3]} 9. Re1 {[%clk 0:04:35]} 9... Nf5 {[%clk 0:04:27.3]}
10. g4 {[%clk 0:03:49.4]} 10... Nh6 {[%clk 0:04:25]} 11. h3 {[%clk 0:03:46.6]}
11... Be7 {[%clk 0:04:07.2]} 12. Nb3 {[%clk 0:03:38.3]} 12... dxc3 {[%clk
0:04:05.6]} 13. bxc3 {[%clk 0:03:38.2]} 13... Na5 {[%clk 0:03:59.9]} 14. Nbd4
{[%clk 0:03:25.5]} 14... Nc4 {[%clk 0:03:52.4]} 15. Rb1 {[%clk 0:02:39]} 15...
Qc7 {[%clk 0:03:50.7]} 16. Bf4 {[%clk 0:01:58.5]} 16... a6 {[%clk 0:03:30.7]}
17. a4 {[%clk 0:01:38.6]} 17... Ng8 {[%clk 0:03:27.8]} 18. Bg3 {[%clk
0:01:31.5]} 18... h5 {[%clk 0:03:26.1]} 19. Nf5 {[%clk 0:01:24.2]} 19... hxg4
{[%clk 0:03:05]} 20. hxg4 {[%clk 0:01:23.6]} 20... g6 {[%clk 0:02:41.6]} 21.
Nxe7 {[%clk 0:00:48.7]} 21... Nxe7 {[%clk 0:02:40.5]} 22. Ng5 {[%clk 0:00:43.2]}
22... Bc6 {[%clk 0:02:01.9]} 23. Qf3 {[%clk 0:00:35.4]} 23... Ng8 {[%clk
0:01:52.3]} 24. Re2 {[%clk 0:00:28.8]} 24... Nh6 {[%clk 0:01:16.7]} 25. Qf6
{[%clk 0:00:24.4]} 25... Rg8 {[%clk 0:01:06.6]} 26. f3 {[%clk 0:00:23.7]} 26...
Qe7 {[%clk 0:01:03.5]} 27. Qf4 {[%clk 0:00:22]} 27... O-O-O {[%clk 0:01:01.2]}
28. Nh7 {[%clk 0:00:20]} 28... g5 {[%clk 0:00:57.9]} 29. Qf6 {[%clk 0:00:16.9]}
29... Qxf6 {[%clk 0:00:51.4]} 30. Nxf6 {[%clk 0:00:15.5]} 30... Rh8 {[%clk
0:00:50.5]} 31. Rh2 {[%clk 0:00:14.6]} 31... Bxa4 {[%clk 0:00:40.4]} 32. Kf2
{[%clk 0:00:13.6]} 32... Bb5 {[%clk 0:00:32.4]} 33. Rbh1 {[%clk 0:00:12.2]}
33... Nxg4+ {[%clk 0:00:31.7]} 34. fxg4 {[%clk 0:00:10.8]} 34... Rxh2+ {[%clk
0:00:30.9]} 35. Rxh2 {[%clk 0:00:10.7]} 35... d4 {[%clk 0:00:30.2]} 36. cxd4
{[%clk 0:00:07.7]} 36... Rxd4 {[%clk 0:00:29.1]} 37. Bxc4 {[%clk 0:00:07]} 37...
Bxc4 {[%clk 0:00:26.9]} 38. Rh8+ {[%clk 0:00:05.5]} 38... Kc7 {[%clk 0:00:25.3]}
39. Ne8+ {[%clk 0:00:05.1]} 39... Kd7 {[%clk 0:00:22.2]} 40. Nd6 {[%clk
0:00:05]} 40... Rxg4 {[%clk 0:00:19.5]} 41. Re8 {[%clk 0:00:03.5]} 41... Bd5
{[%clk 0:00:17.6]} 42. Rf8 {[%clk 0:00:03.3]} 42... f5 {[%clk 0:00:15]} 43. Rf7+
{[%clk 0:00:03.2]} 43... Kc6 {[%clk 0:00:13.6]} 44. Rxb7 {[%clk 0:00:02]} 44...
f4 {[%clk 0:00:12.3]} 45. Bh2 {[%clk 0:00:00.9]} 45... Rg2+ {[%clk 0:00:11.4]}
0-1

[Event "Live Chess"]
[Site "Chess.com"]
[Date "2024.06.02"]
[Round "-"]
[White "lateforthesky"]
[Black "juniortay"]
[Result "1/2-1/2"]
[WhiteElo "2050"]
[BlackElo "2349"]
[TimeControl "300"]
[EndTime "5:16:04 PDT"]
[Termination "Game drawn by repetition"]

1. e4 {[%clk 0:04:56.9]} 1... e5 {[%clk 0:04:59]} 2. Nf3 {[%clk 0:04:55.2]} 2...
Nf6 {[%clk 0:04:58]} 3. d4 {[%clk 0:04:51.6]} 3... Nxe4 {[%clk 0:04:56.3]} 4.
dxe5 {[%clk 0:04:49.5]} 4... Bc5 {[%clk 0:04:55.1]} 5. Bc4 {[%clk 0:04:41.8]}
5... Nxf2 {[%clk 0:04:20.8]} 6. Bxf7+ {[%clk 0:04:38.4]} 6... Kf8 {[%clk
0:04:11.6]} 7. Qd5 {[%clk 0:04:36.8]} 7... Nxh1 {[%clk 0:04:02.4]} 8. Qxc5+
{[%clk 0:04:21]} 8... Kxf7 {[%clk 0:04:00.6]} 9. Qd5+ {[%clk 0:03:33]} 9... Kf8
{[%clk 0:03:54]} 10. Nc3 {[%clk 0:03:22.9]} 10... c6 {[%clk 0:03:51]} 11. Qe4
{[%clk 0:03:19.1]} 11... d5 {[%clk 0:03:45.7]} 12. Qf4+ {[%clk 0:03:16.6]} 12...
Kg8 {[%clk 0:03:40.2]} 13. Bd2 {[%clk 0:03:13]} 13... Qe7 {[%clk 0:03:33.5]} 14.
Be3 {[%clk 0:02:55.1]} 14... Be6 {[%clk 0:03:21.2]} 15. O-O-O {[%clk 0:02:53.3]}
15... Nd7 {[%clk 0:03:13.4]} 16. Rxh1 {[%clk 0:02:49.4]} 16... Rf8 {[%clk
0:03:07.4]} 17. Qg3 {[%clk 0:02:46.7]} 17... h6 {[%clk 0:02:55.4]} 18. Ne2
{[%clk 0:02:27]} 18... Kh7 {[%clk 0:02:49.5]} 19. Nf4 {[%clk 0:02:25.1]} 19...
Bf5 {[%clk 0:02:43.9]} 20. Nd4 {[%clk 0:02:17.6]} 20... Qxe5 {[%clk 0:02:39]}
21. Re1 {[%clk 0:02:00.6]} 21... Re8 {[%clk 0:02:32.8]} 22. Bf2 {[%clk
0:01:52.6]} 22... Qf6 {[%clk 0:02:31.1]} 23. Nh5 {[%clk 0:01:46.3]} 23... Qg6
{[%clk 0:02:22.7]} 24. Nxf5 {[%clk 0:01:37.6]} 24... Rxe1+ {[%clk 0:01:12.9]}
25. Bxe1 {[%clk 0:01:35.1]} 25... Qxg3 {[%clk 0:01:07.5]} 26. Nhxg3 {[%clk
0:01:29.8]} 26... Re8 {[%clk 0:01:01.4]} 27. Kd2 {[%clk 0:01:23.9]} 27... Nc5
{[%clk 0:00:56.8]} 28. b4 {[%clk 0:01:02.3]} 28... Ne4+ {[%clk 0:00:54.3]} 29.
Nxe4 {[%clk 0:01:00.9]} 29... Rxe4 {[%clk 0:00:54.2]} 30. c3 {[%clk 0:00:54.3]}
30... Kg6 {[%clk 0:00:50.2]} 31. Ng3 {[%clk 0:00:51.8]} 31... Re8 {[%clk
0:00:49]} 32. Bf2 {[%clk 0:00:49.9]} 32... b6 {[%clk 0:00:47.4]} 33. a4 {[%clk
0:00:48.6]} 33... h5 {[%clk 0:00:42]} 34. Ne2 {[%clk 0:00:45.6]} 34... Rc8
{[%clk 0:00:34.2]} 35. a5 {[%clk 0:00:40.1]} 35... bxa5 {[%clk 0:00:31.5]} 36.
bxa5 {[%clk 0:00:38.5]} 36... a6 {[%clk 0:00:28.9]} 37. Bc5 {[%clk 0:00:27.9]}
37... Kf5 {[%clk 0:00:26.4]} 38. Nd4+ {[%clk 0:00:26]} 38... Ke4 {[%clk
0:00:24.8]} 39. Ne6 {[%clk 0:00:19.5]} 39... g6 {[%clk 0:00:22.7]} 40. Ng5+
{[%clk 0:00:17.7]} 40... Kf5 {[%clk 0:00:21.6]} 41. Nf3 {[%clk 0:00:16.6]} 41...
Ke4 {[%clk 0:00:19.3]} 42. Ng5+ {[%clk 0:00:15.2]} 42... Kf5 {[%clk 0:00:18.3]}
43. Nf3 {[%clk 0:00:13.9]} 43... Ke4 {[%clk 0:00:17.3]} 44. Ng5+ {[%clk
0:00:13.1]} 1/2-1/2

[Event "Live Chess"]
[Site "Chess.com"]
[Date "2024.06.02"]
[Round "-"]
[White "Andriy_Yaremovych"]
[Black "matt1979"]
[Result "1-0"]
[WhiteElo "1630"]
[BlackElo "1409"]
[TimeControl "300"]
[EndTime "5:16:21 PDT"]
[Termination "Andriy_Yaremovych won by checkmate"]

1. e4 {[%clk 0:04:57.8]} 1... d6 {[%clk 0:04:58.5]} 2. Nc3 {[%clk 0:04:57.7]}
2... Nf6 {[%clk 0:04:56.7]} 3. f4 {[%clk 0:04:57.6]} 3... e5 {[%clk 0:04:55.6]}
4. f5 {[%clk 0:04:56.1]} 4... Be7 {[%clk 0:04:53.3]} 5. Nf3 {[%clk 0:04:55.1]}
5... c6 {[%clk 0:04:52]} 6. Bc4 {[%clk 0:04:52.2]} 6... Qc7 {[%clk 0:04:42.5]}
7. d3 {[%clk 0:04:50.6]} 7... O-O {[%clk 0:04:40.9]} 8. Bg5 {[%clk 0:04:48.7]}
8... b5 {[%clk 0:04:39.6]} 9. Bxf6 {[%clk 0:04:47.4]} 9... Bxf6 {[%clk
0:04:38.4]} 10. Bb3 {[%clk 0:04:45.6]} 10... a5 {[%clk 0:04:37]} 11. a3 {[%clk
0:04:44.4]} 11... a4 {[%clk 0:04:33.3]} 12. Ba2 {[%clk 0:04:43.1]} 12... Na6
{[%clk 0:04:28.3]} 13. Qd2 {[%clk 0:04:41.7]} 13... Nc5 {[%clk 0:04:24.2]} 14.
O-O {[%clk 0:04:38.6]} 14... Qb6 {[%clk 0:04:22.4]} 15. Kh1 {[%clk 0:04:37.6]}
15... Bd7 {[%clk 0:04:17.3]} 16. Ng5 {[%clk 0:04:36.3]} 16... h6 {[%clk
0:04:11.5]} 17. Nh3 {[%clk 0:04:35.1]} 17... Rad8 {[%clk 0:04:04.4]} 18. Rf3
{[%clk 0:04:33.6]} 18... Bc8 {[%clk 0:03:52.7]} 19. Rg3 {[%clk 0:04:32.3]} 19...
Bb7 {[%clk 0:03:46.1]} 20. Qxh6 {[%clk 0:04:26.6]} 20... d5 {[%clk 0:03:40.7]}
21. Qh5 {[%clk 0:04:20.9]} 21... dxe4 {[%clk 0:03:30]} 22. Nxe4 {[%clk
0:04:16.7]} 22... Nxe4 {[%clk 0:03:28.1]} 23. dxe4 {[%clk 0:04:16.6]} 23... Rd2
{[%clk 0:03:17]} 24. Ng5 {[%clk 0:04:12.2]} 24... Rfd8 {[%clk 0:02:55.9]} 25.
Qxf7+ {[%clk 0:04:05.2]} 25... Kh8 {[%clk 0:02:52.2]} 26. Rh3# {[%clk
0:04:05.1]} 1-0

[Event "Live Chess"]
[Site "Chess.com"]
[Date "2024.06.02"]
[Round "-"]
[White "bobby_jamesFischer86"]
[Black "BearFromUkraine"]
[Result "1-0"]
[WhiteElo "1624"]
[BlackElo "985"]
[TimeControl "300"]
[EndTime "5:16:31 PDT"]
[Termination "bobby_jamesFischer86 won by checkmate"]

1. d4 {[%clk 0:04:57.6]} 1... d5 {[%clk 0:04:56.8]} 2. c4 {[%clk 0:04:47]} 2...
e6 {[%clk 0:04:55.1]} 3. Nc3 {[%clk 0:04:46.5]} 3... Nf6 {[%clk 0:04:52]} 4.
cxd5 {[%clk 0:04:45.8]} 4... Nxd5 {[%clk 0:04:49.7]} 5. Nf3 {[%clk 0:04:45.3]}
5... Bd6 {[%clk 0:04:44.2]} 6. e4 {[%clk 0:04:43.7]} 6... Nxc3 {[%clk
0:04:41.5]} 7. bxc3 {[%clk 0:04:42.5]} 7... O-O {[%clk 0:04:38.3]} 8. e5 {[%clk
0:04:41.9]} 8... Be7 {[%clk 0:04:35.7]} 9. Bd3 {[%clk 0:04:41.5]} 9... h6 {[%clk
0:04:32.2]} 10. Bc2 {[%clk 0:04:40.7]} 10... b6 {[%clk 0:04:25.7]} 11. Qd3
{[%clk 0:04:39.9]} 11... g6 {[%clk 0:04:11.1]} 12. Bxh6 {[%clk 0:04:37.9]} 12...
Re8 {[%clk 0:04:07.4]} 13. h4 {[%clk 0:04:36.5]} 13... Bb7 {[%clk 0:03:59.2]}
14. h5 {[%clk 0:04:34.7]} 14... Nc6 {[%clk 0:03:51.6]} 15. hxg6 {[%clk
0:04:29.3]} 15... Nxe5 {[%clk 0:03:47.9]} 16. gxf7+ {[%clk 0:04:24.8]} 16...
Nxf7 {[%clk 0:03:28.6]} 17. Qh7# {[%clk 0:04:21.7]} 1-0

[Event "Live Chess"]
[Site "Chess.com"]
[Date "2024.06.02"]
[Round "-"]
[White "Ferrarifan27"]
[Black "defenderalist"]
[Result "1-0"]
[WhiteElo "2166"]
[BlackElo "1543"]
[TimeControl "300"]
[EndTime "5:17:03 PDT"]
[Termination "Ferrarifan27 won by resignation"]

1. e4 {[%clk 0:04:55.6]} 1... c5 {[%clk 0:04:58.3]} 2. Nf3 {[%clk 0:04:54]} 2...
d6 {[%clk 0:04:57.9]} 3. d4 {[%clk 0:04:52.7]} 3... cxd4 {[%clk 0:04:57]} 4.
Nxd4 {[%clk 0:04:52.2]} 4... Nf6 {[%clk 0:04:56.6]} 5. Nc3 {[%clk 0:04:50.6]}
5... Nc6 {[%clk 0:04:54.8]} 6. Nxc6 {[%clk 0:04:45.1]} 6... bxc6 {[%clk
0:04:53.7]} 7. Bg5 {[%clk 0:04:43]} 7... e6 {[%clk 0:04:49.7]} 8. Qd2 {[%clk
0:04:38.2]} 8... Be7 {[%clk 0:04:43.5]} 9. O-O-O {[%clk 0:04:36.9]} 9... h6
{[%clk 0:04:42.5]} 10. Bf4 {[%clk 0:04:35.3]} 10... e5 {[%clk 0:04:40.6]} 11.
Bg3 {[%clk 0:04:31.4]} 11... Be6 {[%clk 0:04:38.8]} 12. Ba6 {[%clk 0:04:23.7]}
12... Qb6 {[%clk 0:04:29.9]} 13. Qe2 {[%clk 0:04:16.6]} 13... Rb8 {[%clk
0:04:23.7]} 14. b3 {[%clk 0:04:06.7]} 14... c5 {[%clk 0:04:14.7]} 15. Bb5+
{[%clk 0:04:03.6]} 15... Nd7 {[%clk 0:04:07.1]} 16. Bxd7+ {[%clk 0:04:02.5]}
16... Bxd7 {[%clk 0:04:06.1]} 17. Nd5 {[%clk 0:04:01.2]} 17... Qa5 {[%clk
0:03:58.6]} 18. Nxe7 {[%clk 0:03:59.7]} 18... Kxe7 {[%clk 0:03:57.7]} 19. Kb1
{[%clk 0:03:58.3]} 19... Rhc8 {[%clk 0:03:52.2]} 20. Qd3 {[%clk 0:03:55.6]}
20... Rb6 {[%clk 0:03:38.5]} 21. c4 {[%clk 0:03:34.3]} 21... Ra6 {[%clk
0:02:37.4]} 22. Rd2 {[%clk 0:03:30.9]} 22... Be6 {[%clk 0:02:32.8]} 23. Rhd1
{[%clk 0:03:26.6]} 23... Qc7 {[%clk 0:02:11.8]} 24. f4 {[%clk 0:03:22.1]} 24...
exf4 {[%clk 0:01:58.7]} 25. Bxf4 {[%clk 0:03:20]} 25... Rd8 {[%clk 0:01:50.1]}
26. e5 {[%clk 0:03:16.5]} 26... d5 {[%clk 0:01:33.9]} 27. cxd5 {[%clk 0:03:14]}
27... Bg4 {[%clk 0:01:32.7]} 28. Qxa6 {[%clk 0:03:08.5]} 1-0

[Event "Live Chess"]
[Site "Chess.com"]
[Date "2024.06.02"]
[Round "-"]
[White "booktrunk"]
[Black "jimwad"]
[Result "1-0"]
[WhiteElo "1509"]
[BlackElo "1298"]
[TimeControl "300"]
[EndTime "5:17:24 PDT"]
[Termination "booktrunk won on time"]

1. d4 {[%clk 0:04:51.4]} 1... d5 {[%clk 0:04:58.6]} 2. Nc3 {[%clk 0:04:49.1]}
2... Nf6 {[%clk 0:04:56.6]} 3. Bf4 {[%clk 0:04:47.7]} 3... e6 {[%clk 0:04:51.5]}
4. e3 {[%clk 0:04:43.7]} 4... Bd6 {[%clk 0:04:49.6]} 5. Bxd6 {[%clk 0:04:39.8]}
5... Qxd6 {[%clk 0:04:48.2]} 6. Nf3 {[%clk 0:04:37.3]} 6... Nc6 {[%clk
0:04:45.8]} 7. Nb5 {[%clk 0:04:29.5]} 7... Qd7 {[%clk 0:04:42.4]} 8. Nc3 {[%clk
0:04:26.8]} 8... O-O {[%clk 0:04:40.7]} 9. Bd3 {[%clk 0:04:24.5]} 9... Nb4
{[%clk 0:04:29.3]} 10. Be2 {[%clk 0:04:20.8]} 10... b6 {[%clk 0:04:24.9]} 11. a3
{[%clk 0:04:19.4]} 11... Na6 {[%clk 0:04:22.6]} 12. O-O {[%clk 0:04:13.5]} 12...
c5 {[%clk 0:04:21.5]} 13. dxc5 {[%clk 0:04:11.8]} 13... Nxc5 {[%clk 0:04:18.7]}
14. b4 {[%clk 0:04:09]} 14... Nce4 {[%clk 0:04:16.2]} 15. Nxe4 {[%clk
0:04:06.4]} 15... Nxe4 {[%clk 0:04:15]} 16. Bd3 {[%clk 0:03:59.8]} 16... Nf6
{[%clk 0:03:51.3]} 17. Ne5 {[%clk 0:03:50.3]} 17... Qd6 {[%clk 0:03:47.4]} 18.
f4 {[%clk 0:03:49]} 18... Nd7 {[%clk 0:03:39.1]} 19. Nxd7 {[%clk 0:03:22.4]}
19... Qxd7 {[%clk 0:03:37.5]} 20. Rf3 {[%clk 0:03:21.3]} 20... Bb7 {[%clk
0:03:35]} 21. Rh3 {[%clk 0:03:18.8]} 21... h6 {[%clk 0:03:32.3]} 22. Qg4 {[%clk
0:03:14.6]} 22... Kh8 {[%clk 0:03:17.2]} 23. Rg3 {[%clk 0:03:08.1]} 23... f5
{[%clk 0:03:14.2]} 24. Qg6 {[%clk 0:03:02.6]} 24... Qf7 {[%clk 0:03:07.9]} 25.
Qxf7 {[%clk 0:02:59.4]} 25... Rxf7 {[%clk 0:03:07]} 26. Rc1 {[%clk 0:02:57.2]}
26... Rg8 {[%clk 0:03:01.5]} 27. c4 {[%clk 0:02:51.1]} 27... g5 {[%clk
0:02:57.4]} 28. cxd5 {[%clk 0:02:46.6]} 28... Bxd5 {[%clk 0:02:54.9]} 29. fxg5
{[%clk 0:02:43.3]} 29... hxg5 {[%clk 0:02:47.7]} 30. Rh3+ {[%clk 0:02:40.8]}
30... Rh7 {[%clk 0:02:46.4]} 31. Rxh7+ {[%clk 0:02:37]} 31... Kxh7 {[%clk
0:02:45.3]} 32. Rc7+ {[%clk 0:02:35.7]} 32... Rg7 {[%clk 0:02:42.1]} 33. Rc8
{[%clk 0:02:27.1]} 33... Kg6 {[%clk 0:02:34.4]} 34. Kf2 {[%clk 0:02:25.5]} 34...
Kf6 {[%clk 0:02:30.5]} 35. h3 {[%clk 0:02:22.9]} 35... e5 {[%clk 0:02:25.5]} 36.
Rf8+ {[%clk 0:02:17.5]} 36... Rf7 {[%clk 0:02:24.2]} 37. Rh8 {[%clk 0:02:12.7]}
37... e4 {[%clk 0:02:23]} 38. Bc2 {[%clk 0:02:08.5]} 38... Rg7 {[%clk
0:02:07.9]} 39. Bd1 {[%clk 0:02:04.6]} 39... f4 {[%clk 0:02:01.2]} 40. exf4
{[%clk 0:01:56.1]} 40... gxf4 {[%clk 0:02:00]} 41. Bh5 {[%clk 0:01:53.7]} 41...
e3+ {[%clk 0:01:58.3]} 42. Kf1 {[%clk 0:01:49.1]} 42... Bxg2+ {[%clk 0:01:56.1]}
43. Ke2 {[%clk 0:01:47.4]} 43... Bxh3 {[%clk 0:01:44.1]} 44. Rf8+ {[%clk
0:01:43.7]} 44... Kg5 {[%clk 0:01:40.9]} 45. Bf3 {[%clk 0:01:41.1]} 45... Bg4
{[%clk 0:01:30.8]} 46. Rd8 {[%clk 0:01:36.9]} 46... Bxf3+ {[%clk 0:01:28.7]} 47.
Kxf3 {[%clk 0:01:35.1]} 47... Re7 {[%clk 0:01:25]} 48. Rd5+ {[%clk 0:01:33.5]}
48... Kf6 {[%clk 0:01:21.8]} 49. Rd1 {[%clk 0:01:30.6]} 49... e2 {[%clk
0:01:20.4]} 50. Re1 {[%clk 0:01:29.4]} 50... Kf5 {[%clk 0:01:19.6]} 51. Kf2
{[%clk 0:01:25.8]} 51... Re3 {[%clk 0:01:12.1]} 52. a4 {[%clk 0:01:20.2]} 52...
Re4 {[%clk 0:01:02.9]} 53. a5 {[%clk 0:01:17.7]} 53... bxa5 {[%clk 0:00:55.8]}
54. bxa5 {[%clk 0:01:15.3]} 54... Kg4 {[%clk 0:00:52.9]} 55. Rg1+ {[%clk
0:01:11.8]} 55... Kf5 {[%clk 0:00:51.4]} 56. Re1 {[%clk 0:01:10.2]} 56... Re5
{[%clk 0:00:49.4]} 57. a6 {[%clk 0:01:07.6]} 57... Re6 {[%clk 0:00:47.9]} 58.
Kf3 {[%clk 0:01:05.9]} 58... Rxa6 {[%clk 0:00:46.2]} 59. Rxe2 {[%clk 0:01:04.1]}
59... Ra3+ {[%clk 0:00:44.7]} 60. Kf2 {[%clk 0:01:02.4]} 60... f3 {[%clk
0:00:40.1]} 61. Rb2 {[%clk 0:01:01.2]} 61... a5 {[%clk 0:00:36.7]} 62. Rb5+
{[%clk 0:00:59.8]} 62... Ke4 {[%clk 0:00:35.1]} 63. Rb6 {[%clk 0:00:58.5]} 63...
Ra2+ {[%clk 0:00:29]} 64. Kf1 {[%clk 0:00:56.5]} 64... Ke3 {[%clk 0:00:21.4]}
65. Rb3+ {[%clk 0:00:55.1]} 65... Kf4 {[%clk 0:00:19.8]} 66. Rc3 {[%clk
0:00:49.3]} 66... Kg3 {[%clk 0:00:18]} 67. Rc1 {[%clk 0:00:46]} 67... a4 {[%clk
0:00:15.1]} 68. Rb1 {[%clk 0:00:44.6]} 68... a3 {[%clk 0:00:12.9]} 69. Kg1
{[%clk 0:00:41.9]} 69... Rg2+ {[%clk 0:00:10.4]} 70. Kh1 {[%clk 0:00:39.3]}
70... a2 {[%clk 0:00:08.7]} 71. Ra1 {[%clk 0:00:37.7]} 71... f2 {[%clk
0:00:03.3]} 72. Rd1 {[%clk 0:00:35.1]} 72... Rg1+ {[%clk 0:00:01]} 73. Rxg1+
{[%clk 0:00:31.8]} 1-0